bitfinex/quotes_BTCUSD_20250225
["timestamp","ask_amount","ask_price","bid_price","bid_amount"]
[1740500320282,0.01454085,87049.0,87007.0,0.0484]
[1740500320472,0.102663,87048.0,87010.0,0.0919713]
[1740500320675,0.00012868,87057.0,87021.0,0.0919313]
[1740500320888,0.259258,87056.0,87021.0,0.0919313]
[1740500321172,0.259258,87056.0,87032.0,0.0801]
[1740500321173,0.10196676,87039.0,87032.0,0.0801]
[1740500321443,0.05196676,87039.0,87033.0,0.0467]
[1740500322158,0.05196676,87039.0,87034.0,0.01454085]
[1740500322361,0.00012868,87057.0,87033.0,0.0467]
[1740500322564,0.00012868,87057.0,87032.0,0.0801]
[1740500322743,0.00152363,87056.0,87032.0,0.0801]
[1740500323108,0.00012868,87057.0,87040.0,0.0919313]
[1740500323552,0.00012868,87057.0,87049.0,0.0919313]
[1740500323767,0.00182748,87057.0,87051.0,0.0469]
[1740500324005,0.02299,87073.0,87053.0,0.01454085]
[1740500324236,0.0016982,87080.0,87072.0,0.0919313]
[1740500324476,0.0016982,87080.0,87073.0,0.01614835]
[1740500324694,0.02299,87112.0,87077.0,0.01454085]
[1740500324910,0.02311873,87112.0,87095.0,0.0919313]
[1740500325703,0.00012873,87112.0,87095.0,0.0919313]
[1740500326450,0.00012873,87112.0,87105.0,0.0919313]
[1740500327294,0.00012873,87112.0,87095.0,0.0919713]
[1740500327628,0.00012873,87112.0,87095.0,4e-05]
[1740500328373,0.00158303,87111.0,87095.0,4e-05]
[1740500328579,0.20311585,87110.0,87095.0,4e-05]
[1740500328787,0.01454085,87108.0,87095.0,4e-05]
[1740500328982,0.00012873,87112.0,87095.0,4e-05]
[1740500328983,0.01454085,87106.0,87095.0,4e-05]
[1740500329188,0.00012873,87112.0,87095.0,4e-05]
[1740500329385,0.219743,87111.0,87095.0,4e-05]
[1740500329595,0.00012873,87112.0,87095.0,4e-05]
[1740500330065,0.188162,87111.0,87095.0,4e-05]
[1740500330209,0.00012873,87112.0,87095.0,4e-05]
[1740500331056,0.01454085,87110.0,87095.0,4e-05]
[1740500331407,0.01454085,87108.0,87095.0,4e-05]
[1740500331636,0.01454085,87106.0,87095.0,4e-05]
[1740500332061,0.01454085,87104.0,87095.0,4e-05]
[1740500332481,0.01454085,87105.0,87095.0,4e-05]
[1740500332648,0.01454085,87106.0,87095.0,4e-05]
[1740500332866,0.00012873,87112.0,87095.0,4e-05]
[1740500335451,0.034561,87111.0,87095.0,4e-05]
[1740500335683,0.034561,87111.0,87081.0,0.0689713]
[1740500335684,0.10240824,87107.0,87081.0,0.0689713]
[1740500335885,0.02299,87106.0,87081.0,0.0689713]
[1740500337341,0.02299,87106.0,87090.0,0.0919313]
[1740500337787,0.034561,87111.0,87080.0,0.0008491]
[1740500337989,0.34384085,87121.0,87080.0,0.0008491]
[1740500337990,0.00162367,87114.0,87080.0,0.0008491]
[1740500338193,0.320183,87113.0,87080.0,0.00097783]
[1740500338342,0.31385037,87121.0,87080.0,0.00097783]
[1740500338646,1.177142,87120.0,87080.0,0.00097783]
[1740500338846,0.31385037,87119.0,87080.0,0.00097783]
[1740500339050,0.989683,87118.0,87080.0,0.00097783]
[1740500339338,0.144255,87118.0,87080.0,0.00925961]
[1740500339547,0.31385037,87119.0,87081.0,0.0919313]
[1740500339914,0.105741,87118.0,87081.0,0.0919313]
[1740500340250,0.18252,87129.0,87090.0,0.0919313]
[1740500340437,0.001697,87147.0,87090.0,0.0919313]
[1740500340438,0.31385037,87136.0,87119.0,0.0919313]
[1740500340648,0.001697,87147.0,87128.0,0.0919313]
[1740500340843,0.001697,87147.0,87138.0,0.0818]
[1740500341657,0.00212756,87145.0,87138.0,0.0818]
[1740500341858,0.00212756,87145.0,87140.0,0.0919313]
[1740500342066,0.31385037,87166.0,87141.0,0.00160648]
[1740500342429,0.0001286,87166.0,87156.0,0.36716827]
[1740500342889,0.0001286,87166.0,87140.0,0.0919313]
[1740500343072,0.0001286,87166.0,87149.0,0.36716827]
[1740500343517,0.0001286,87166.0,87140.0,0.0919313]
[1740500343702,0.0001286,87166.0,87156.0,4e-05]
[1740500344330,0.17194885,87165.0,87156.0,4e-05]
[1740500344532,0.01454085,87163.0,87156.0,4e-05]
[1740500344730,0.90029737,87164.0,87156.0,4e-05]
[1740500344731,0.01454085,87161.0,87156.0,4e-05]
[1740500344930,0.01454085,87159.0,87156.0,4e-05]
[1740500345130,0.01454085,87157.0,87156.0,4e-05]
[1740500345337,0.78144422,87157.0,87156.0,4e-05]
[1740500345530,0.78307678,87157.0,87156.0,4e-05]
[1740500345753,0.78307678,87157.0,87138.0,4e-05]
[1740500345754,0.78144422,87157.0,87138.0,4e-05]
[1740500345957,0.472862,87156.0,87138.0,4e-05]
[1740500346136,0.31385037,87155.0,87138.0,4e-05]
[1740500346363,0.135565,87154.0,87138.0,4e-05]
[1740500346560,0.31385037,87153.0,87138.0,4e-05]
[1740500346761,0.108766,87152.0,87138.0,4e-05]
[1740500346984,0.32839122,87151.0,87138.0,4e-05]
[1740500347185,0.0001286,87166.0,87138.0,4e-05]
[1740500347186,0.01454085,87149.0,87138.0,4e-05]
[1740500347344,2.95079364,87150.0,87138.0,4e-05]
[1740500347345,0.06104085,87139.0,87138.0,4e-05]
[1740500347547,1.08284922,87139.0,87138.0,4e-05]
[1740500347795,0.31385037,87139.0,87138.0,4e-05]
[1740500348387,0.32839122,87139.0,87138.0,4e-05]
[1740500348595,0.70399822,87139.0,87138.0,4e-05]
[1740500348792,0.70837677,87139.0,87138.0,4e-05]
[1740500348972,0.59731677,87139.0,87138.0,4e-05]
[1740500349170,0.31397892,87139.0,87138.0,4e-05]
[1740500349369,0.00012855,87139.0,87138.0,4e-05]
[1740500354042,0.00012855,87139.0,87138.0,8e-05]
[1740500354262,0.13158162,87171.0,87138.0,8e-05]
[1740500354463,0.110196,87170.0,87138.0,8e-05]
[1740500354699,0.107948,87170.0,87138.0,8e-05]
[1740500354913,0.135324,87170.0,87138.0,8e-05]
[1740500355246,0.01454085,87169.0,87138.0,8e-05]
[1740500355496,0.01454085,87167.0,87138.0,8e-05]
[1740500355735,0.01454085,87165.0,87138.0,8e-05]
[1740500355906,0.01454085,87163.0,87138.0,8e-05]
[1740500356109,0.398658,87162.0,87138.0,8e-05]
[1740500356644,0.01454085,87161.0,87138.0,8e-05]
[1740500356877,0.126282,87160.0,87138.0,8e-05]
[1740500357091,0.46101015,87171.0,87138.0,8e-05]
[1740500357468,0.364723,87170.0,87138.0,8e-05]
[1740500357887,0.14628085,87169.0,87138.0,8e-05]
[1740500358048,0.13171015,87171.0,87148.0,0.09180787]
[1740500358247,0.00163477,87168.0,87148.0,0.09180787]
[1740500358653,0.13340415,87171.0,87140.0,0.0785]
[1740500358654,0.01454085,87169.0,87140.0,0.0785]
[1740500358837,0.01454085,87167.0,87140.0,0.0785]
[1740500359198,0.13340415,87171.0,87140.0,0.0785]
[1740500359484,0.01454085,87170.0,87140.0,0.0785]
[1740500359695,0.01454085,87170.0,87138.0,0.3251]
[1740500359696,0.69603762,87170.0,87138.0,0.3251]
[1740500359832,0.01454085,87168.0,87138.0,0.3251]
[1740500360029,0.01454085,87166.0,87138.0,0.3251]
[1740500360230,0.01454085,87164.0,87138.0,0.3251]
[1740500360437,0.13340415,87171.0,87138.0,0.3251]
[1740500360734,0.13340415,87171.0,87139.0,0.09180787]
[1740500360936,0.008,87140.0,87139.0,0.09180787]
[1740500361293,0.008,87140.0,87139.0,0.41690787]
[1740500361504,0.13327562,87171.0,87149.0,0.1]
[1740500361705,0.13327562,87171.0,87170.0,0.13710787]
[1740500361858,0.00517562,87171.0,87170.0,0.51690787]
[1740500362111,0.0016982,87200.0,87174.0,0.1]
[1740500362442,0.00182478,87186.0,87185.0,0.36709667]
[1740500362643,0.00182478,87186.0,87185.0,0.47990634]
[1740500363225,0.0016982,87200.0,87185.0,0.44319667]
[1740500363432,0.0016982,87200.0,87196.0,0.36709667]
[1740500365314,0.0016982,87200.0,87186.0,0.3251]
[1740500365753,0.0016982,87200.0,87196.0,4e-05]
[1740500370930,0.0016982,87200.0,87197.0,0.41684522]
[1740500371850,0.0016982,87200.0,87197.0,0.3251]
[1740500372064,0.0086982,87200.0,87197.0,0.3261]
[1740500372459,0.0086982,87200.0,87198.0,0.00160536]
[1740500372775,0.0016982,87200.0,87197.0,0.3251]
[1740500373072,0.0086982,87200.0,87197.0,0.3261]
[1740500374045,0.0086982,87200.0,87198.0,0.00160534]
[1740500374283,0.05755167,87243.0,87198.0,0.00160534]
[1740500374483,0.00012851,87214.0,87199.0,0.35777453]
[1740500374665,0.00012851,87214.0,87199.0,0.3251]
[1740500374666,0.007,87200.0,87199.0,0.3251]
[1740500375178,0.00012851,87214.0,87199.0,0.3251]
[1740500375407,0.007,87200.0,87199.0,0.3251]
[1740500375818,0.00012851,87214.0,87199.0,0.3251]
[1740500376143,0.007,87200.0,87199.0,0.3251]
[1740500376384,0.007,87200.0,87196.0,4e-05]
[1740500376385,0.384477,87200.0,87196.0,4e-05]
[1740500376624,0.007,87200.0,87196.0,4e-05]
[1740500377133,0.01454085,87199.0,87196.0,4e-05]
[1740500377367,0.53352685,87199.0,87196.0,4e-05]
[1740500377576,0.106721,87198.0,87196.0,4e-05]
[1740500377757,0.007,87200.0,87196.0,4e-05]
[1740500377957,0.00012851,87214.0,87196.0,4e-05]
[1740500378372,0.00212851,87214.0,87199.0,0.001]
[1740500378770,0.00212851,87214.0,87200.0,0.00160532]
[1740500378973,0.00012851,87214.0,87200.0,0.00160532]
[1740500379178,0.00012851,87214.0,87196.0,4e-05]
[1740500379179,0.00212851,87214.0,87196.0,0.00104]
[1740500380337,0.00163586,87213.0,87196.0,4e-05]
[1740500380735,0.00012851,87214.0,87196.0,4e-05]
[1740500381584,0.0016934,87200.0,87196.0,4e-05]
[1740500382260,0.0016934,87200.0,87196.0,0.32514]
[1740500382462,0.0016934,87200.0,87198.0,0.09174522]
[1740500382667,0.0016934,87200.0,87199.0,0.00160511]
[1740500383159,0.0086934,87200.0,87199.0,0.00160511]
[1740500383682,0.0086934,87200.0,87198.0,0.09174522]
[1740500384014,0.0086934,87200.0,87196.0,0.32514]
[1740500384652,0.0016934,87200.0,87196.0,0.32514]
[1740500384856,0.0016934,87200.0,87196.0,4e-05]
[1740500385058,0.0086934,87200.0,87196.0,4e-05]
[1740500385443,0.0016934,87200.0,87196.0,4e-05]
[1740500385869,0.0086934,87200.0,87196.0,4e-05]
[1740500386653,0.00107313,87199.0,87196.0,4e-05]
[1740500387037,0.0086934,87200.0,87196.0,4e-05]
[1740500387698,0.0016934,87200.0,87196.0,4e-05]
[1740500388189,0.007,87199.0,87196.0,4e-05]
[1740500388614,0.0016934,87200.0,87196.0,4e-05]
[1740500388808,0.0086934,87200.0,87196.0,4e-05]
[1740500389437,0.0016934,87200.0,87196.0,4e-05]
[1740500389655,0.007,87199.0,87196.0,4e-05]
[1740500389863,0.00807313,87199.0,87196.0,4e-05]
[1740500390059,0.21404685,87198.0,87196.0,4e-05]
[1740500390263,1.23092707,87197.0,87196.0,4e-05]
[1740500390463,0.01454085,87196.0,87185.0,4e-05]
[1740500390761,0.10628607,87187.0,87185.0,4e-05]
[1740500390962,1.46590207,87187.0,87185.0,4e-05]
[1740500391137,0.33991773,87187.0,87186.0,5.839e-05]
[1740500391323,0.32879573,87187.0,87186.0,5.839e-05]
[1740500391530,0.01454085,87186.0,87127.0,0.10160626]
[1740500391726,0.29672785,87186.0,87128.0,0.00160619]
[1740500391969,0.01454085,87184.0,87139.0,0.00160619]
[1740500392149,0.01454085,87182.0,87138.0,0.00097538]
[1740500392365,0.01454085,87180.0,87138.0,0.00097538]
[1740500392709,0.13714522,87197.0,87138.0,0.00097538]
[1740500392710,0.01454085,87178.0,87138.0,0.00097538]
[1740500392882,0.01454085,87176.0,87138.0,0.00097538]
[1740500393089,0.01454085,87174.0,87138.0,0.00097538]
[1740500393298,0.01454085,87172.0,87138.0,0.00097538]
[1740500393584,0.372411,87171.0,87138.0,0.00097538]
[1740500393755,0.108762,87170.0,87138.0,0.00097538]
[1740500393912,0.00116988,87170.0,87138.0,0.00097538]
[1740500394125,0.112069,87169.0,87138.0,0.00097538]
[1740500394564,0.00116988,87168.0,87138.0,0.00097538]
[1740500394784,0.10224736,87156.0,87138.0,0.00097538]
[1740500397225,0.01454085,87155.0,87138.0,0.00097538]
[1740500397659,0.01454085,87153.0,87138.0,0.00097538]
[1740500397879,0.01454085,87151.0,87138.0,0.00097538]
[1740500398104,0.01454085,87175.0,87138.0,0.00097538]
[1740500398326,0.01454085,87149.0,87138.0,0.00097538]
[1740500398548,0.007,87156.0,87138.0,0.00097538]
[1740500398772,0.253638,87155.0,87138.0,0.00097538]
[1740500399056,0.01454085,87152.0,87138.0,0.00097538]
[1740500399268,0.01454085,87150.0,87138.0,0.00097538]
[1740500399467,0.09174522,87144.0,87098.0,0.0008467]
[1740500399670,0.09054085,87132.0,87098.0,0.00127546]
[1740500399902,0.01454085,87130.0,87098.0,0.00127546]
[1740500400105,1.835743,87131.0,87098.0,0.00127546]
[1740500400106,0.01454085,87128.0,87098.0,0.00127546]
[1740500400307,0.076,87132.0,87098.0,0.00127546]
[1740500400531,0.18865,87131.0,87098.0,0.00127546]
[1740500400731,0.01454085,87130.0,87098.0,0.00127546]
[1740500400971,1.41555285,87130.0,87098.0,0.00127546]
[1740500401147,0.93211732,87129.0,87098.0,0.00127546]
[1740500401351,0.375336,87128.0,87098.0,0.00127546]
[1740500401527,0.076,87147.0,87098.0,0.00127546]
[1740500401528,0.073,87147.0,87098.0,0.00127546]
[1740500401729,0.71484,87146.0,87098.0,0.00127546]
[1740500402063,0.401965,87146.0,87098.0,0.00127546]
[1740500402262,0.007,87129.0,87098.0,0.00127546]
[1740500402463,0.25185685,87128.0,87098.0,0.00127546]
[1740500402805,0.073,87147.0,87100.0,0.09174522]
[1740500403030,0.151178,87146.0,87101.0,0.01106965]
[1740500403149,0.007,87146.0,87100.0,0.09174522]
[1740500403354,0.113335,87145.0,87101.0,0.00160687]
[1740500403559,0.274261,87145.0,87100.0,0.09174522]
[1740500403773,0.226248,87145.0,87100.0,0.09174522]
[1740500403976,0.220233,87145.0,87100.0,0.09174522]
[1740500404159,0.01454085,87143.0,87098.0,0.00127546]
[1740500404388,0.01454085,87141.0,87098.0,0.00127546]
[1740500404588,0.01454085,87141.0,87099.0,0.09174522]
[1740500404883,0.007,87128.0,87100.0,0.00930207]
[1740500405163,0.007,87128.0,87108.0,0.09174522]
[1740500405456,0.001694,87147.0,87108.0,0.09174522]
[1740500405679,0.005,87141.0,87108.0,0.09174522]
[1740500405891,0.09708488,87112.0,87108.0,0.09174522]
[1740500406242,0.09708488,87112.0,87111.0,0.1]
[1740500406446,0.001694,87147.0,87111.0,0.1]
[1740500406447,0.001694,87147.0,87120.0,0.01454085]
[1740500406623,0.001694,87147.0,87146.0,0.27394522]
[1740500406821,0.001694,87147.0,87146.0,0.18818522]
[1740500407073,0.001694,87147.0,87146.0,0.28818522]
[1740500407390,0.001694,87147.0,87146.0,0.32700374]
[1740500407624,0.0514934,87200.0,87151.0,0.1]
[1740500407798,0.0514934,87200.0,87161.0,0.09174522]
[1740500408002,0.05162188,87200.0,87162.0,0.00160566]
[1740500408441,0.00182188,87200.0,87171.0,0.09174522]
[1740500408575,0.00182188,87200.0,87180.0,0.09174522]
[1740500408767,0.00182188,87200.0,87189.0,0.09174522]
[1740500408970,0.00182188,87200.0,87190.0,0.00160519]
[1740500409164,0.00182188,87200.0,87199.0,0.09174522]
[1740500409366,0.00882188,87200.0,87199.0,0.09174522]
[1740500409564,0.00882188,87200.0,87189.0,0.09174522]
[1740500409792,0.00882188,87200.0,87190.0,0.02841958]
[1740500410338,0.00882188,87200.0,87189.0,0.10598522]
[1740500410745,0.00182188,87200.0,87189.0,0.10598522]
[1740500410950,0.00182188,87200.0,87168.0,0.0791]
[1740500411159,0.00012868,87199.0,87180.0,0.01584527]
[1740500411397,0.00182188,87200.0,87180.0,0.01584527]
[1740500411530,0.00012868,87199.0,87180.0,0.01424]
[1740500411710,0.00012868,87199.0,87157.0,0.1]
[1740500411932,0.00182188,87200.0,87168.0,0.01424]
[1740500412132,0.00182188,87200.0,87169.0,0.00160561]
[1740500412356,0.00182188,87200.0,87167.0,0.01424]
[1740500412790,0.00182188,87200.0,87168.0,0.00160549]
[1740500412994,0.00182188,87200.0,87180.0,0.001]
[1740500413620,0.00029537,87199.0,87180.0,0.001]
[1740500413966,0.00182188,87200.0,87180.0,0.001]
[1740500414164,0.00182188,87200.0,87183.0,0.09174522]
[1740500414377,0.00182188,87200.0,87184.0,0.01104033]
[1740500414585,0.00482188,87200.0,87192.0,0.09174522]
[1740500414789,0.00482188,87200.0,87193.0,0.001605]
[1740500415004,0.00482188,87200.0,87192.0,0.09174522]
[1740500415207,0.00182188,87200.0,87194.0,0.001605]
[1740500415407,0.00482188,87200.0,87194.0,0.03044002]
[1740500415523,0.00482188,87200.0,87192.0,0.09174522]
[1740500415748,0.00482188,87200.0,87183.0,0.10598522]
[1740500415749,0.00013781,87199.0,87183.0,0.10598522]
[1740500415957,0.00013781,87199.0,87175.0,0.01424]
[1740500416202,0.00182188,87200.0,87188.0,0.09174522]
[1740500416401,0.00182188,87200.0,87189.0,0.00160506]
[1740500416963,0.00182188,87200.0,87189.0,0.01454085]
[1740500417167,0.00182188,87200.0,87189.0,0.01614593]
[1740500417364,0.00182188,87200.0,87199.0,0.09174522]
[1740500417776,0.00182188,87200.0,87188.0,0.28674522]
[1740500417777,0.00182188,87200.0,87188.0,0.18674522]
[1740500417984,0.00182188,87200.0,87181.0,0.1]
[1740500417985,0.00182188,87200.0,87182.0,0.095]
[1740500418259,0.007,87199.0,87189.0,0.0016051]
[1740500418481,0.007,87199.0,87183.0,0.001]
[1740500418686,0.00014658,87198.0,87157.0,0.095]
[1740500418914,0.00014658,87198.0,87154.0,0.0142]
[1740500419121,0.00014658,87198.0,87116.0,0.0756]
[1740500419122,0.005,87192.0,87116.0,0.0756]
[1740500419331,0.005,87165.0,87116.0,0.0756]
[1740500419465,0.01454085,87167.0,87120.0,0.095]
[1740500419668,0.01454085,87167.0,87110.0,0.0142]
[1740500419669,0.00013781,87164.0,87121.0,0.00160642]
[1740500419918,0.00014658,87167.0,87122.0,0.09174522]
[1740500420123,0.0492,87169.0,87131.0,0.09174522]
[1740500420331,0.0492,87169.0,87132.0,0.01078067]
[1740500420581,0.0492,87169.0,87133.0,0.01454085]
[1740500420788,0.0492,87169.0,87141.0,0.09174522]
[1740500420789,0.00012841,87169.0,87141.0,0.09174522]
[1740500421301,0.00012841,87169.0,87142.0,0.00160582]
[1740500421500,0.00712841,87169.0,87142.0,0.00160582]
[1740500421858,0.00712841,87169.0,87142.0,0.02044092]
[1740500421984,0.00012841,87169.0,87142.0,0.02044092]
[1740500422396,0.00712841,87169.0,87141.0,0.09174522]
[1740500422604,0.10241363,87154.0,87142.0,0.00160606]
[1740500422774,0.10241363,87154.0,87141.0,0.0142]
[1740500423017,0.10241363,87154.0,87125.0,0.095]
[1740500423243,0.005,87145.0,87104.0,0.1]
[1740500423446,0.005,87150.0,87109.0,0.01917452]
[1740500423596,0.005,87145.0,87109.0,0.01917452]
[1740500423775,0.0496,87153.0,87119.0,0.09174522]
[1740500423985,0.0496,87153.0,87120.0,0.00160632]
[1740500424368,0.10241363,87154.0,87128.0,0.09174522]
[1740500424613,0.007,87150.0,87129.0,0.01580625]
[1740500425210,0.10241363,87154.0,87129.0,0.01580625]
[1740500425438,0.10241363,87154.0,87130.0,0.034796]
[1740500425660,0.007,87153.0,87130.0,0.034796]
[1740500425854,0.007,87153.0,87131.0,0.00160618]
[1740500425973,0.007,87153.0,87130.0,0.01454085]
[1740500426212,0.007,87153.0,87131.0,0.00160613]
[1740500426472,0.007,87153.0,87142.0,0.0008467]
[1740500426719,0.10241363,87160.0,87143.0,0.00160613]
[1740500426944,0.007,87150.0,87142.0,0.0008467]
[1740500427599,0.10241363,87160.0,87142.0,0.0008467]
[1740500427836,0.10941363,87160.0,87143.0,0.09335134]
[1740500428058,0.10941363,87160.0,87144.0,0.04346065]
[1740500428293,0.10941363,87160.0,87142.0,0.1958467]
[1740500428294,0.10241363,87160.0,87142.0,0.0958467]
[1740500428524,0.10241363,87160.0,87142.0,0.0008467]
[1740500428742,0.003,87150.0,87142.0,0.0008467]
[1740500428964,0.003,87150.0,87146.0,0.09174522]
[1740500429187,0.003,87150.0,87147.0,0.00160604]
[1740500429410,0.003,87150.0,87147.0,0.0205258]
[1740500429863,0.00012841,87169.0,87147.0,0.0205258]
[1740500429864,0.10254204,87169.0,87147.0,0.0205258]
[1740500430082,0.10254204,87169.0,87147.0,0.00160591]
[1740500430306,0.003,87160.0,87156.0,0.01454085]
[1740500430824,0.10254204,87169.0,87158.0,0.01454085]
[1740500431053,0.10754204,87169.0,87160.0,0.01454085]
[1740500431166,0.10754204,87169.0,87162.0,0.01454085]
[1740500431375,0.10754204,87169.0,87168.0,0.10954085]
[1740500431581,0.10754204,87169.0,87168.0,0.12374085]
[1740500431582,0.10254204,87169.0,87168.0,0.12374085]
[1740500431991,0.10254204,87169.0,87168.0,0.02874085]
[1740500432367,0.10254204,87169.0,87150.0,0.0142]
[1740500432506,0.10254204,87169.0,87157.0,0.00160583]
[1740500432912,0.10254204,87169.0,87142.0,0.0958467]
[1740500433128,0.10254204,87169.0,87143.0,0.0303651]
[1740500433385,0.10354204,87169.0,87168.0,0.001]
[1740500433593,0.00112841,87169.0,87168.0,0.001]
[1740500433745,0.00012841,87169.0,87150.0,0.00160591]
[1740500434152,0.00412841,87169.0,87153.0,0.01454085]
[1740500434338,0.00412841,87169.0,87162.0,0.01454085]
[1740500434550,0.00012841,87169.0,87155.0,0.095]
[1740500434726,0.00012841,87169.0,87157.0,0.095]
[1740500434966,0.00412841,87169.0,87159.0,0.01454085]
[1740500435143,0.00412841,87169.0,87165.0,0.01454085]
[1740500435347,0.00412841,87169.0,87168.0,0.20954085]
[1740500435546,0.00412841,87169.0,87168.0,0.10954085]
[1740500436224,0.00012841,87169.0,87168.0,0.11114622]
[1740500436467,0.00012841,87169.0,87161.0,0.09174522]
[1740500436688,0.00012841,87169.0,87166.0,0.095]
[1740500436920,0.00012841,87169.0,87168.0,0.01454085]
[1740500437150,0.00012841,87169.0,87168.0,0.11454085]
[1740500437370,0.00112841,87169.0,87168.0,0.01554085]
[1740500437594,0.00112841,87169.0,87168.0,0.11214635]
[1740500437881,0.00112841,87169.0,87168.0,0.14509404]
[1740500437882,0.00012841,87169.0,87168.0,0.14509404]
[1740500438111,0.00012841,87169.0,87168.0,0.05009404]
[1740500438357,0.00012841,87169.0,87168.0,0.14509404]
[1740500438570,0.00012841,87169.0,87168.0,0.14348861]
[1740500439237,0.00012841,87169.0,87168.0,0.13055324]
[1740500439479,0.00012841,87169.0,87168.0,0.12894776]
[1740500439708,0.00112841,87169.0,87168.0,0.12994776]
[1740500439946,0.00112841,87169.0,87168.0,0.2315532]
[1740500440176,0.00112841,87169.0,87168.0,0.22994776]
[1740500440438,0.00012841,87169.0,87168.0,0.22894776]
[1740500440656,0.00012841,87169.0,87168.0,0.36568861]
[1740500440657,0.00112841,87169.0,87168.0,0.36568861]
[1740500441193,0.00112841,87169.0,87168.0,0.22894776]
[1740500441194,0.00012841,87169.0,87168.0,0.22894776]
[1740500441395,0.00012841,87169.0,87168.0,0.13394776]
[1740500441596,0.00012841,87169.0,87168.0,0.23055302]
[1740500441811,0.00012841,87169.0,87168.0,0.22894776]
[1740500442159,0.00012841,87169.0,87167.0,0.1]
[1740500442363,0.00112841,87169.0,87168.0,0.001]
[1740500442804,0.00012841,87169.0,87158.0,0.095]
[1740500443168,0.00112841,87169.0,87168.0,0.001]
[1740500443383,0.03882183,87205.0,87168.0,0.001]
[1740500443589,0.00012851,87204.0,87169.0,0.00160551]
[1740500443793,0.00012851,87204.0,87158.0,0.001]
[1740500444054,0.05779623,87226.0,87158.0,0.101]
[1740500444228,0.09174522,87236.0,87163.0,0.1]
[1740500444569,0.09174522,87236.0,87161.0,0.1]
[1740500444570,0.0570852,87222.0,87167.0,0.1]
[1740500444706,0.0570852,87222.0,87168.0,0.00160532]
[1740500444938,0.09174522,87236.0,87168.0,0.00160532]
[1740500445340,0.0570852,87222.0,87168.0,0.00160532]
[1740500445536,0.007,87204.0,87177.0,0.1]
[1740500446191,0.01454085,87227.0,87178.0,0.00160524]
[1740500446395,0.007,87206.0,87179.0,0.01016052]
[1740500446598,0.007,87206.0,87180.0,0.10160517]
[1740500447019,0.10241363,87216.0,87190.0,0.1]
[1740500447219,0.007,87204.0,87191.0,0.01580513]
[1740500448007,0.007,87204.0,87191.0,0.0142]
[1740500448208,0.007,87204.0,87191.0,0.01432851]
[1740500448657,0.10241363,87216.0,87191.0,0.00012851]
[1740500448884,0.007,87206.0,87191.0,0.00012851]
[1740500449388,0.10241363,87216.0,87191.0,0.00012851]
[1740500450263,0.007,87204.0,87191.0,0.00012851]
[1740500451451,0.01454085,87217.0,87191.0,0.00012851]
[1740500451707,0.01454085,87208.0,87191.0,0.00012851]
[1740500451863,0.01463174,87208.0,87191.0,0.00012851]
[1740500452075,0.02669673,87209.0,87191.0,0.00012851]
[1740500452295,0.01969673,87209.0,87191.0,0.00012851]
[1740500452485,0.01463174,87208.0,87191.0,0.00012851]
[1740500452696,0.01454085,87208.0,87191.0,0.00012851]
[1740500453765,0.01969673,87209.0,87191.0,0.00012851]
[1740500453766,0.10241363,87207.0,87191.0,0.00012851]
[1740500455832,0.01454085,87206.0,87191.0,0.00012851]
[1740500456393,0.01454085,87203.0,87191.0,0.00012851]
[1740500457028,0.01454085,87201.0,87191.0,5.47e-06]
[1740500457234,0.10241363,87194.0,87155.0,0.0008467]
[1740500457442,0.01454085,87193.0,87156.0,0.00160574]
[1740500457638,0.10241363,87194.0,87155.0,0.0008467]
[1740500458110,0.01454085,87193.0,87155.0,0.0008467]
[1740500458557,0.01454085,87189.0,87155.0,0.0008467]
[1740500458714,0.09174522,87184.0,87155.0,0.0008467]
[1740500458979,0.01454085,87183.0,87155.0,0.0008467]
[1740500459221,0.01466874,87183.0,87155.0,0.0008467]
[1740500459778,0.00012789,87183.0,87155.0,0.0008467]
[1740500460939,0.10012789,87183.0,87155.0,0.0008467]
[1740500461163,0.01454085,87182.0,87155.0,0.0008467]
[1740500461800,0.10012789,87183.0,87090.0,0.1]
[1740500461801,0.01454085,87156.0,87090.0,0.1]
[1740500462007,0.1264,87139.0,87077.0,4e-05]
[1740500462185,0.01454085,87121.0,87077.0,4e-05]
[1740500462423,0.01454085,87119.0,87077.0,4e-05]
[1740500462797,0.0001515,87118.0,87077.0,4e-05]
[1740500462999,0.0001515,87118.0,87098.0,0.00127546]
[1740500463195,0.01454085,87117.0,87098.0,0.00127546]
[1740500463416,0.01454085,87115.0,87098.0,0.00127546]
[1740500463818,0.0001515,87114.0,87098.0,0.00127546]
[1740500464662,0.01454085,87112.0,87098.0,0.00127546]
[1740500464868,0.36731578,87103.0,87098.0,0.00127546]
[1740500465081,0.72210985,87102.0,87098.0,0.00127546]
[1740500465270,0.915945,87101.0,87098.0,0.00127546]
[1740500465437,0.01454085,87100.0,87098.0,0.00127546]
[1740500465633,0.01469235,87100.0,87098.0,0.00127546]
[1740500465841,0.0001515,87100.0,87098.0,0.00127546]
[1740500466312,0.39490963,87099.0,87098.0,0.00127546]
[1740500466508,0.39490963,87099.0,87077.0,4e-05]
[1740500466509,0.01454085,87098.0,87077.0,4e-05]
[1740500466645,0.43148885,87098.0,87080.0,0.00097751]
[1740500466850,0.01454085,87096.0,87080.0,0.00097751]
[1740500467259,0.00059778,87095.0,87080.0,0.00097751]
[1740500467649,0.01454085,87093.0,87080.0,0.00097751]
[1740500467860,0.01454085,87091.0,87080.0,0.00097751]
[1740500468072,0.143424,87092.0,87058.0,0.1008621]
[1740500468073,0.01454085,87089.0,87058.0,0.1008621]
[1740500468285,0.36731578,87084.0,87058.0,0.1008621]
[1740500468545,1.54251085,87083.0,87067.0,0.00037747]
[1740500468757,0.01454085,87081.0,87067.0,0.00037747]
[1740500468941,0.01454085,87079.0,87067.0,0.00037747]
[1740500469143,0.0791,87076.0,87067.0,0.00037747]
[1740500469346,0.57039921,87075.0,87067.0,0.00037747]
[1740500469578,0.183118,87074.0,87067.0,0.00037747]
[1740500469782,0.01454085,87073.0,87067.0,0.00037747]
[1740500470035,0.01454085,87071.0,87067.0,0.00037747]
[1740500470240,0.176853,87070.0,87016.0,0.00160835]
[1740500470455,0.17701536,87070.0,87024.0,0.36731578]
[1740500470659,0.282332,87069.0,87025.0,0.00160814]
[1740500470861,0.01454085,87067.0,87024.0,0.36731578]
[1740500471059,0.01454085,87067.0,87026.0,0.00160814]
[1740500471237,0.00016236,87066.0,87024.0,0.36731578]
[1740500471451,0.00016236,87066.0,87025.0,0.00160818]
[1740500471645,0.00016236,87066.0,87024.0,0.36731578]
[1740500471848,0.00016236,87066.0,87025.0,0.0016082]